[Event "CCT Chessable Masters Playoffs 2025"]
[Site "Online"]
[Date "2025.02.18"]
[Round "51"]
[White "Giri, Anish"]
[Black "Sevian, Samuel"]
[Result "1-0"]
[Annotator "TA"]
[ECO "A13"]
[WhiteElo "2728"]
[BlackElo "2692"]
[PlyCount "83"]
[EventDate "2025.02.13"]
[EventType "k.o."]
[EventCountry "NET"]
[SourceTitle "playchess.com"]
[Source "ChessBase"]
[SourceQuality "1"]
[TimeControl "600"]

{[%evp 9,83,15,8,-15,-22,-15,-14,-22,-14,-20,-16,-4,0,0,33,33,44,29,38,22,36,10,12,10,0,0,35,35,33,0,0,0,0,0,0,-50,-35,-54,-56,-37,-46,-42,0,-5,0,0,0,0,0,0,0,14,18,0,203,183,229,207,348,368,354,359,745,797,841,831,977,964,6134,6214,29989,29990,29990,29991,29991,1492]} 1. c4 {[%emt 0:00:01]} Nf6 {[%emt 0:02:39]} 2. Nf3 {[%emt 0:00:06]} e6 {[%emt 0:00:02]} 3. g3 {[%emt 0:00:01]} d5 {[%emt 0:00:01]} 4. Bg2 {[%emt 0:00:00]} d4 {[%emt 0:00:06]} 5. d3 {[%emt 0:00:07]} c5 {[%emt 0:00:02]} 6. e4 {[%emt 0:00:04] A13: English Opening: 1...e6.} Nc6 {[%emt 0:00:21]} 7. e5 {[%emt 0:00:01]} Nd7 {[%emt 0:00:02][%cal Bf6d7,Bd7f8,Bf8h7,Bh7g5][%mdl 32]} 8. Qe2 {[%emt 0:00:05] The position is equal.} Be7 {[%emt 0:00:01] is now debated instead of 8...Qc7.} 9. h4 {[%emt 0:00:07][%cal Bh2h4,Bh4h5][%mdl 32]} h6 {[%emt 0:00:02]} 10. Bf4 {[%emt 0:00:24]} Nf8 {[%emt 0:00:02]} 11. h5 {[%emt 0:00:06] Prevents Ng6} Nh7 {[%emt 0:00:11]} 12. Nbd2 {[%emt 0:00:03]} Ng5 {[%emt 0:00:01]} 13. Nh2 {[%emt 0:00:15]} Bd7 {[%emt 0:00:05]} 14. a3 $146 {[%emt 0:00:04]} (14. Ng4 Qb6 15. Ne4 Nxe4 16. Bxe4 O-O-O 17. O-O-O Nb4 18. Kb1 Ba4 19. b3 Bc6 20. Bxc6 Nxc6 {1-0 Zuse,P (2320)-Groenegress,W (2215) Bundesliga 8687 1986 [5]}) 14... Qc7 {[%emt 0:00:09]} 15. Rb1 {[%emt 0:00:09]} a5 {[%emt 0:00:03]} 16. O-O {[%emt 0:00:21]} a4 {[%emt 0:00:09]} 17. Rfe1 {[%emt 0:00:19]} Na5 {[%emt 0:00:10]} 18. g4 {[%emt 0:00:36]} Bc6 {[%emt 0:00:12]} 19. Bg3 {[%emt 0:00:02]} Bxg2 {[%emt 0:00:01]} 20. Kxg2 {[%emt 0:00:00]} Qc6+ {[%emt 0:00:01]} 21. f3 {[%emt 0:00:02]} Rg8 {[%emt 0:00:19]} 22. Rh1 {[%emt 0:00:22]} (22. Kh1 $11) 22... Ra6 {[%emt 0:00:16]} (22... f5 {is interesting.} 23. exf6 gxf6 24. Rbe1 Kd7) 23. b4 {[%emt 0:00:18] [#]} axb3 {[%emt 0:00:14]} 24. Nxb3 {[%emt 0:00:00]} Nxb3 {[%emt 0:00:09]} 25. Rxb3 {[%emt 0:00:01]} b6 {[%emt 0:00:00]} 26. Nf1 {[%emt 0:00:08][%cal Bh2f1,Bf1d2,Bd2e4][%mdl 32]} Kd7 {[%emt 0:00:06]} 27. Nd2 {[%emt 0:00:01]} Rga8 {[%emt 0:00:02]} 28. Ra1 {[%emt 0:00:03]} Bd8 {[%emt 0:00:04]} 29. Kh2 {[%emt 0:00:05]} Bc7 {[%emt 0:00:13]} 30. f4 {[%emt 0:00:02]} Nh7 {[%emt 0:00:01]} 31. Ne4 {[%emt 0:00:10]} Rf8 $2 {[%emt 0:00:02]} (31... f6 $11 {and Black is okay.}) 32. g5 $36 {[%emt 0:00:29][%mdl 2048] White is on the roll.} Rh8 {[%emt 0:01:10] [#]} (32... hxg5 {is a better defense.} 33. fxg5 f5 34. exf6 gxf6) 33. Qg4 $1 {[%emt 0:00:48] Threatens to win with gxh6.} Kc8 {[%emt 0:00:01]} (33... Qa8 $142 34. Kg1 Qe8) 34. gxh6 {[%emt 0:00:39]} gxh6 {[%emt 0:00:01]} 35. Rab1 {[%emt 0:00:00]} Ra8 $2 {[%emt 0:01:33]} (35... Qd7 36. Bh4 f5 37. exf6 Rf8) 36. Qg7 {[%emt 0:00:30][%csl LRf7,LRh6,LRh8]} Kb7 {[%emt 0:00:01][%cal Bc8b7,Bb7b6,Bb6a5][%mdl 32]} 37. a4 {[%emt 0:00:00]} Rag8 {[%emt 0:00:57]} 38. Qxf7 {[%emt 0:00:02] White threatens Rxb6+ and mate.} (38. Qxh6 Ka8 (38... Ng5 39. fxg5 Rxh6 40. gxh6 $16) 39. a5 bxa5 $16 (39... Ng5 $2 40. axb6 Nf3+ 41. Kh3 $18)) 38... Rf8 {[%emt 0:00:09]} 39. Rxb6+ {[%emt 0:00:06]} Qxb6 {[%emt 0:00:03]} 40. Rxb6+ {[%emt 0:00:01] White mates.} Kxb6 {[%emt 0:00:01]} 41. Qxe6+ {[%emt 0:00:00]} Ka5 {[%emt 0:00:01]} 42. Qc6 {[%emt 0:00:02] Weighted Error Value: White=0.06 (flawless) /Black=0.67  Loses game:     	---       	Black=1      Mistake:       	White=1     	Black=3      Inaccurate:     	White=2     	Black=3      OK:         	White=10    	Black=7      Best:        	White=3     	Black=2} (42. Be1+ $142 Kxa4 43. Qa6+ (43. Qxh6 Nf6 $18) 43... Kb3 44. Qa1 (44. Qxh6 Nf6 $16) 44... Rb8 45. Bd2 (45. Nxc5+ Kc2 $18) 45... Kc2 46. Qc1+ Kxd3 47. Nxc5+ Ke2 48. Qe1+ Kf3 49. Qf1+ Kg4 50. Qh3#) 1-0

[Event "CCT Chessable Masters Playoffs 2025"]
[Site "Online"]
[Date "2025.02.18"]
[Round "51"]
[White "Esipenko, Andrey"]
[Black "So, Wesley"]
[Result "1-0"]
[Annotator "TA"]
[ECO "D35"]
[WhiteElo "2695"]
[BlackElo "2747"]
[PlyCount "89"]
[EventDate "2025.02.13"]
[EventType "k.o."]
[EventCountry "NET"]
[SourceTitle "playchess.com"]
[Source "ChessBase"]
[SourceQuality "1"]
[TimeControl "600"]

{[%evp 18,89,27,26,25,20,27,8,5,8,31,29,49,35,50,-22,53,43,49,43,59,18,7,9,74,70,70,70,71,53,61,53,70,60,71,65,92,106,120,128,123,118,116,84,126,114,143,93,94,95,129,130,215,233,183,164,474,449,464,423,418,408,1451,1453,1440,1424,1223,536,1222,942,5106,5006,2506,2382]} 1. d4 {[%emt 0:00:00]} Nf6 {[%emt 0:03:00]} 2. c4 {[%emt 0:00:01]} e6 {[%emt 0:00:01]} 3. Nc3 {[%emt 0:00:00]} d5 {[%emt 0:00:00]} 4. cxd5 {[%emt 0:00:01]} exd5 {[%emt 0:00:00]} 5. Bg5 {[%emt 0:00:00]} c6 {[%emt 0:00:02]} 6. e3 {[%emt 0:00:01]} Bf5 {[%emt 0:00:02]} 7. Qf3 {[%emt 0:00:00]} Bg6 {[%emt 0:00:00]} 8. Bxf6 {[%emt 0:00:01]} Qxf6 {[%emt 0:00:01]} 9. Qxf6 {[%emt 0:00:00]} gxf6 {[%emt 0:00:00]} 10. h4 {[%emt 0:00:01]} h5 {[%emt 0:00:01] D35: Queen's Gambit Declined: Exchange Variation.} 11. Nge2 {[%emt 0:00:06]} Nd7 {[%emt 0:00:02]} 12. f3 $5 {[%emt 0:00:04][%mdl 4] Leaves trodden paths.} Nb6 $146 {[%emt 0:00:08] The position is equal.} ({Predecessor:} 12... O-O-O 13. Kf2 Bd3 14. Nf4 Bxf1 15. Raxf1 Bd6 16. g4 Bxf4 17. exf4 Nb6 18. b3 Kd7 {1-0 Ruan,Z (1875)-Zhang,D (1618) Binhai Cup-B 4th 2024 (7)}) 13. Nf4 {[%emt 0:00:13]} Bd6 {[%emt 0:00:01]} 14. Kf2 {[%emt 0:00:00]} a5 {[%emt 0:00:04]} 15. g4 {[%emt 0:00:08][%cal Bg2g4,Bg4h5][%mdl 32]} Ke7 {[%emt 0:00:30]} 16. Nce2 {[%emt 0:00:24]} (16. gxh5 $14 Bh7 (16... Bxh5 17. Nce2 $17) 17. Bh3) 16... Rag8 {[%emt 0:00:20]} (16... hxg4 $11 17. Nxg6+ fxg6 18. fxg4 Nc4) 17. gxh5 $1 $14 {[%emt 0:00:25]} Bf5 {[%emt 0:00:20][%cal Bg6f5,Bf5e6,Be6d5][%mdl 32]} 18. Ng3 {[%emt 0:00:31] Excellent horsemanship.} Be6 {[%emt 0:00:01]} 19. Bd3 {[%emt 0:00:06]} Nc4 {[%emt 0:00:08]} 20. Bxc4 {[%emt 0:00:56]} Bxf4 {[%emt 0:00:01]} (20... dxc4 $11 {remains equal.} 21. Nge2 Bf5) 21. exf4 $16 {[%emt 0:00:03]} dxc4 {[%emt 0:00:01]} 22. f5 $36 {[%emt 0:00:09][%mdl 2048] White is more active.} Bd5 {[%emt 0:00:05]} 23. Rhe1+ {[%emt 0:00:07]} Kd6 {[%emt 0:00:25]} 24. Re3 {[%emt 0:00:03]} Re8 {[%emt 0:00:15]} 25. Rxe8 {[%emt 0:00:29]} Rxe8 $14 {[%emt 0:00:00][%mdl 4096] Endgame KRB-KRN. White is a pawn up.} 26. a4 {[%emt 0:00:02]} Rh8 {[%emt 0:00:06]} 27. Ke3 {[%emt 0:00:02]} Ra8 {[%emt 0:00:18]} 28. Ne4+ {[%emt 0:00:45]} Ke7 {[%emt 0:00:02]} 29. Kf4 {[%emt 0:00:20]} Rh8 {[%emt 0:00:03]} 30. Ng3 {[%emt 0:00:03]} (30. Re1 Bxe4 31. Kg4 (31. Kxe4 Rxh5 32. Rh1 Kd6 $17) (31. Rxe4+ Kd7 $11) 31... Rg8+ 32. Kh3 Rd8 $16) 30... Kf8 {[%emt 0:00:06]} 31. Re1 {[%emt 0:00:07]} b5 {[%emt 0:00:08] [#]} 32. Ra1 {[%emt 0:00:51]} (32. axb5 $6 cxb5 33. Ne2 b4 $11 (33... Rxh5 34. Kg4 $14)) (32. Ne4 $142 $1 {[%cal Re4f6]}) 32... b4 $16 {[%emt 0:00:02]} 33. Rc1 {[%emt 0:00:10]} Kg7 {[%emt 0:00:11]} 34. Ne4 {[%emt 0:00:05]} Rxh5 {[%emt 0:00:40]} (34... Rh6 $16 {keeps fighting.}) 35. Rg1+ $18 {[%emt 0:00:02]} Kf8 {[%emt 0:00:39]} 36. Nxf6 {[%emt 0:00:01]} Rh8 {[%emt 0:00:11] Dodges Rg8+} (36... Rxh4+ 37. Ke5 Rh8) 37. Ke5 {[%emt 0:00:32]} Bxf3 {[%emt 0:00:12]} 38. Kd6 {[%emt 0:00:02]} c3 {[%emt 0:00:02]} ({Worse is} 38... Rxh4 39. Rg8#) 39. bxc3 {[%emt 0:00:00]} bxc3 {[%emt 0:00:00]} (39... b3 $142 40. h5 Bxh5 (40... Rh6 41. Rg8#) 41. Nd7+ (41. Kxc6 $2 {loses.} Rh6 $19) 41... Ke8) 40. Nd7+ {[%emt 0:00:07] White is clearly winning.} Ke8 {[%emt 0:00:02]} 41. Re1+ {[%emt 0:00:02]} Be4 {[%emt 0:00:13]} 42. Nf6+ {[%emt 0:00:19]} (42. Rxe4+ $142 Kd8 43. Re3 (43. Kxc6 c2 $18) (43. Ne5 Rh6+ 44. Kc5 Kc7 $18)) 42... Kd8 {[%emt 0:00:04]} 43. Nxe4 {[%emt 0:00:04] [#] Hoping for Rb1.} Rxh4 {[%emt 0:00:05]} 44. Kxc6 {[%emt 0:00:19][%cal Oe4d6] White threatens Nd6! and mate.} c2 {[%emt 0:00:27]} 45. Nd6 {[%emt 0:00:08] Weighted Error Value: White=0.22 (precise) /Black=0.72  Mistake:       	White=2     	Black=5      Inaccurate:     	White=1     	Black=4      OK:         	White=13    	Black=7      Best:        	White=1     	Black=4      Strong:       	White=1     	---} 1-0

[Event "CCT Chessable Masters Playoffs 2025"]
[Site "Online"]
[Date "2025.02.18"]
[Round "51"]
[White "Sevian, Samuel"]
[Black "Giri, Anish"]
[Result "1/2-1/2"]
[Annotator "TA"]
[ECO "C55"]
[WhiteElo "2692"]
[BlackElo "2728"]
[PlyCount "61"]
[EventDate "2025.02.13"]
[EventType "k.o."]
[EventCountry "NET"]
[SourceTitle "playchess.com"]
[Source "ChessBase"]
[SourceQuality "1"]
[TimeControl "600"]

{[%evp 11,61,11,16,11,20,10,22,0,0,0,0,-4,-2,-5,27,29,29,32,27,32,31,32,25,22,23,10,20,0,0,0,0,0,0,0,0,0,0,0,0,0,0,0,0,0,0,0,0,0,0,0,0,0]} 1. e4 {[%emt 0:00:00]} e5 {[%emt 0:00:03]} 2. Nf3 {[%emt 0:00:01]} Nc6 {[%emt 0:00:00]} 3. Bc4 {[%emt 0:00:01]} Nf6 {[%emt 0:00:01]} 4. d3 {[%emt 0:00:00]} Be7 {[%emt 0:00:01]} 5. O-O {[%emt 0:00:02]} O-O {[%emt 0:00:00]} 6. Nc3 {[%emt 0:00:01]} d6 {[%emt 0:00:01]} 7. a4 {[%emt 0:00:01] 7.a3 is a critical line. C55: Two Knights: 4 d3, 4 d4 exd4 5 e5 and Max Lange Attack.} Bg4 {[%emt 0:00:02]} 8. h3 {[%emt 0:00:00]} Bh5 {[%emt 0:00:00]} 9. Nd5 {[%emt 0:00:08]} Nxd5 {[%emt 0:00:03]} 10. Bxd5 {[%emt 0:00:01]} Nb4 {[%emt 0:00:01]} 11. Bb3 {[%emt 0:00:08]} Na6 $146 {[%emt 0:00:03]} (11... a5 12. c3 Na6 13. Be3 c6 14. g4 Bg6 15. Nd2 Nc7 16. f4 exf4 17. Bxf4 d5 {0-1 Faizrakhmanov,R (2454)-Grischuk,A (2732) Moscow Aeroflot op-A 2024 (2)}) 12. Be3 {[%emt 0:00:13]} Nc5 {[%emt 0:00:00]} 13. Bxc5 {[%emt 0:00:06] [#] And now Be3 would win.} Bxf3 $1 {[%emt 0:00:02]} 14. Qxf3 {[%emt 0:00:03]} dxc5 {[%emt 0:00:00] Black is weak on the light squares} 15. g3 {[%emt 0:00:08]} g6 {[%emt 0:00:18]} 16. Kg2 {[%emt 0:00:03]} Kg7 {[%emt 0:00:00]} 17. Qe2 {[%emt 0:00:20]} Qd6 {[%emt 0:00:32]} 18. Bc4 {[%emt 0:00:03]} Rae8 {[%emt 0:00:16] The position is equal.} 19. a5 {[%emt 0:00:22]} c6 {[%emt 0:00:02]} 20. Ra4 {[%emt 0:00:33]} Bd8 {[%emt 0:00:05]} 21. Qe3 {[%emt 0:00:30]} Bc7 {[%emt 0:00:54]} 22. Rb1 {[%emt 0:00:52]} Ra8 {[%emt 0:00:13]} 23. Rba1 {[%emt 0:00:08]} h5 {[%emt 0:00:13]} 24. h4 {[%emt 0:00:06]} Qe7 {[%emt 0:00:05]} 25. c3 {[%emt 0:00:14]} Bd6 {[%emt 0:00:08]} 26. Bb3 {[%emt 0:00:14]} Rad8 {[%emt 0:00:26]} 27. Qe2 {[%emt 0:00:15]} Rd7 {[%emt 0:00:06]} 28. Bc4 {[%emt 0:00:25]} Rdd8 {[%emt 0:00:10]} 29. Bb3 {[%emt 0:00:01]} Rd7 {[%emt 0:00:00]} 30. Bc4 {[%emt 0:00:07]} Rdd8 {[%emt 0:00:01]} 31. Bb3 {[%emt 0:00:13] Weighted Error Value: White=0.02 (flawless) /Black=0.02 (flawless)   Inaccurate:     	White=1     	Black=1      OK:         	White=7     	Black=13     Strong:       	---       	Black=1} 1/2-1/2

[Event "CCT Chessable Masters Playoffs 2025"]
[Site "Online"]
[Date "2025.02.18"]
[Round "51"]
[White "Artemiev, Vladislav"]
[Black "Praggnanandhaa R"]
[Result "1/2-1/2"]
[Annotator "TA"]
[ECO "E32"]
[WhiteElo "2691"]
[BlackElo "2741"]
[PlyCount "113"]
[EventDate "2025.02.13"]
[EventType "k.o."]
[EventCountry "NET"]
[SourceTitle "playchess.com"]
[Source "ChessBase"]
[SourceQuality "1"]
[TimeControl "600"]

{[%evp 12,113,6,-1,12,11,20,7,6,12,19,9,17,11,59,59,56,62,55,60,66,47,64,62,68,61,70,38,22,27,38,34,31,31,29,30,34,36,50,36,36,37,35,38,65,19,10,10,15,2,8,0,0,0,0,0,0,0,0,0,0,0,0,0,0,0,0,0,0,0,0,0,0,0,0,0,0,0,0,0,0,0,0,0,0,0,0,0,0,0,0,0,0,0,0,0,0,0,0,0,0,0,0,0]} 1. d4 {[%emt 0:00:01]} Nf6 {[%emt 0:00:02]} 2. c4 {[%emt 0:00:01]} e6 {[%emt 0:00:00]} 3. Nc3 {[%emt 0:00:01]} Bb4 {[%emt 0:00:01]} 4. Qc2 {[%emt 0:00:00]} O-O {[%emt 0:00:18]} 5. a3 {[%emt 0:00:02]} Bxc3+ {[%emt 0:00:02]} 6. Qxc3 {[%emt 0:00:00]} d6 {[%emt 0:00:08]} 7. Bg5 {[%emt 0:00:21]} Re8 {[%emt 0:00:10] E32: Nimzo-Indian: Classical (4 Qc2): 4...0-0.} 8. e3 {[%emt 0:00:26]} h6 {[%emt 0:00:10]} 9. Bh4 {[%emt 0:00:03]} e5 {[%emt 0:00:01]} 10. Bd3 {[%emt 0:00:16]} exd4 $146 {[%emt 0:00:42]} (10... e4 11. Bc2 c6 12. Ne2 Nbd7 13. Qd2 Nb6 14. b3 d5 15. c5 Nbd7 16. b4 a5 {½-½ Mkrtchian,L (2468)-Kovanova,B (2408) Nanjing FIDE GP (Women) 2009 (1)}) 11. Qxd4 {[%emt 0:00:02]} Nc6 {[%emt 0:00:01]} (11... g5 $5 12. Bg3 $8 Nc6 $11) 12. Bxf6 {[%emt 0:00:11]} Qxf6 {[%emt 0:00:01]} (12... Nxd4 $11 13. Bxd8 Nb3) 13. Qxf6 $14 {[%emt 0:00:01]} gxf6 {[%emt 0:00:00]} 14. Ne2 {[%emt 0:00:21]} Ne5 {[%emt 0:00:48]} 15. Nf4 {[%emt 0:00:01]} Be6 {[%emt 0:00:08]} 16. Rc1 {[%emt 0:00:35]} f5 {[%emt 0:01:01]} 17. Be2 {[%emt 0:00:14]} a5 {[%emt 0:00:04]} 18. O-O {[%emt 0:00:50]} a4 {[%emt 0:00:04]} 19. Nd5 {[%emt 0:00:49]} Bxd5 {[%emt 0:00:30]} 20. cxd5 {[%emt 0:00:00]} c5 {[%emt 0:00:27]} 21. dxc6 {[%emt 0:00:02]} bxc6 {[%emt 0:00:02]} 22. Rfd1 {[%emt 0:00:41]} d5 {[%emt 0:00:46]} 23. Rd2 {[%emt 0:00:31]} Rab8 {[%emt 0:00:18]} 24. f4 {[%emt 0:00:08]} Ng4 {[%emt 0:00:54]} 25. Bxg4 {[%emt 0:00:11]} (25. Rxc6 {seems wilder.} Re6 26. Rc7 Rxe3 27. h3) 25... fxg4 {[%emt 0:00:00]} 26. Rxc6 {[%emt 0:00:04]} Rxe3 {[%emt 0:00:03]} 27. Rxh6 {[%emt 0:00:09][%cal Oh6h4][%mdl 4096] Endgame KRR-KRR. White is a pawn up.} Re4 {[%emt 0:00:27]} 28. g3 {[%emt 0:00:11]} ({Much worse is} 28. Rxd5 Rxb2 29. Rg5+ Kf8 30. Rh8+ (30. Rxg4 $2 Re1#) 30... Ke7 31. Re5+ Rxe5 32. fxe5 Rb3 $11) (28. f5 $14) 28... Re1+ $11 {[%emt 0:00:15] The position is equal.} 29. Kf2 {[%emt 0:00:03]} Rb1 {[%emt 0:00:01]} 30. Rh4 {[%emt 0:00:44]} R8xb2 {[%emt 0:00:07]} 31. Rxg4+ {[%emt 0:00:02]} Kf8 {[%emt 0:00:01]} 32. Rxb2 {[%emt 0:00:12]} Rxb2+ {[%emt 0:00:00] KR-KR. White is a pawn up.} 33. Ke3 {[%emt 0:00:02]} Rb3+ {[%emt 0:00:15]} 34. Kd4 {[%emt 0:00:01]} Rxa3 {[%emt 0:00:01]} 35. Rg5 {[%emt 0:01:28]} Ra2 {[%emt 0:00:33]} 36. Kxd5 {[%emt 0:00:06]} Rxh2 {[%emt 0:00:07]} 37. Ke4 {[%emt 0:00:02]} a3 {[%emt 0:00:04]} 38. Ra5 {[%emt 0:00:01]} a2 {[%emt 0:00:00]} 39. Ra6 {[%emt 0:00:07]} Rg2 {[%emt 0:00:04]} 40. Kf3 {[%emt 0:00:02]} Rb2 {[%emt 0:00:01]} 41. g4 {[%emt 0:00:07]} Kg7 {[%emt 0:00:03]} 42. g5 {[%emt 0:00:02]} Rc2 {[%emt 0:00:07]} 43. Kg4 {[%emt 0:00:02]} Rb2 {[%emt 0:00:01]} 44. Ra7 {[%emt 0:00:02]} Rg2+ {[%emt 0:00:09]} 45. Kf3 {[%emt 0:00:01]} Rb2 {[%emt 0:00:02]} 46. f5 {[%emt 0:00:01]} Kg8 {[%emt 0:00:15]} 47. Kg4 {[%emt 0:00:06]} Rf2 {[%emt 0:00:02]} 48. f6 {[%emt 0:00:05]} Rb2 {[%emt 0:00:04]} 49. Kf4 {[%emt 0:00:02]} Rg2 {[%emt 0:00:01]} 50. Kf5 {[%emt 0:00:03]} Rf2+ {[%emt 0:00:02]} 51. Kg4 {[%emt 0:00:01]} Rb2 {[%emt 0:00:01]} 52. Kf4 {[%emt 0:00:01]} Rf2+ {[%emt 0:00:06]} 53. Kg3 {[%emt 0:00:01]} Rc2 {[%emt 0:00:00]} 54. Kf4 {[%emt 0:00:01]} Rb2 {[%emt 0:00:02]} 55. Kg4 {[%emt 0:00:01]} Rf2 {[%emt 0:00:01]} 56. Kg3 {[%emt 0:00:01]} Rb2 {[%emt 0:00:02]} 57. Kf4 {[%emt 0:00:00] Weighted Error Value: White=0.03 (flawless) /Black=0.03 (flawless)   Mistake:       	White=1     	Black=1      Inaccurate:     	White=1     	Black=1      OK:         	White=28    	Black=18     Best:        	White=1     	Black=3} 1/2-1/2